[Event "Betsys MČR v online bleskovém šachu 2021"]
[Site "Chess.com"]
[Date "2021.04.17"]
[Round "10"]
[White "marosino"]
[Black "DONSANMIGUEL"]
[Result "1-0"]
[WhiteElo "1575"]
[BlackElo "1784"]
[TimeControl "180+1"]
[EndTime "10:42:16 PDT"]
[Termination "Uživatel marosino zvítězil na čas"]

1. b3 {[%clk 0:03:00.9]} 1... e6 {[%clk 0:03:00.9]} 2. Bb2 {[%clk 0:03:00.5]}
2... Nf6 {[%clk 0:03:01.2]} 3. g3 {[%clk 0:03:00.6]} 3... a5 {[%clk 0:03:02.1]}
4. a4 {[%clk 0:02:59.7]} 4... Nc6 {[%clk 0:02:56.4]} 5. Bg2 {[%clk 0:02:58.8]}
5... Be7 {[%clk 0:02:56.6]} 6. e3 {[%clk 0:02:58.7]} 6... d6 {[%clk 0:02:55.7]}
7. d4 {[%clk 0:02:58.5]} 7... Bd7 {[%clk 0:02:55.6]} 8. Ne2 {[%clk 0:02:55.3]}
8... Qc8 {[%clk 0:02:55.1]} 9. O-O {[%clk 0:02:54.1]} 9... h5 {[%clk 0:02:51]}
10. h4 {[%clk 0:02:53.3]} 10... d5 {[%clk 0:02:51]} 11. c4 {[%clk 0:02:50.5]}
11... Nb4 {[%clk 0:02:48.7]} 12. c5 {[%clk 0:02:43.4]} 12... c6 {[%clk
0:02:46.9]} 13. Ba3 {[%clk 0:02:39.3]} 13... Qd8 {[%clk 0:02:45.3]} 14. Bxb4
{[%clk 0:02:38.5]} 14... axb4 {[%clk 0:02:45.7]} 15. Qd2 {[%clk 0:02:37.9]}
15... Qa5 {[%clk 0:02:44.4]} 16. Nc1 {[%clk 0:02:33]} 16... Ne4 {[%clk
0:02:42.1]} 17. Bxe4 {[%clk 0:02:28.1]} 17... dxe4 {[%clk 0:02:40.3]} 18. Qc2
{[%clk 0:02:23.2]} 18... f5 {[%clk 0:02:37.8]} 19. Ne2 {[%clk 0:02:22]} 19... g5
{[%clk 0:02:36]} 20. hxg5 {[%clk 0:02:19.7]} 20... h4 {[%clk 0:02:30.1]} 21. Kg2
{[%clk 0:02:15.6]} 21... h3+ {[%clk 0:02:28.8]} 22. Kh2 {[%clk 0:02:14.8]} 22...
Bxg5 {[%clk 0:02:28.8]} 23. Nf4 {[%clk 0:02:12.5]} 23... Bxf4 {[%clk 0:02:26.4]}
24. exf4 {[%clk 0:02:12.3]} 24... Qd8 {[%clk 0:02:05.8]} 25. Nd2 {[%clk
0:02:10.9]} 25... Qf6 {[%clk 0:02:00.9]} 26. Qb2 {[%clk 0:02:07.3]} 26... Qg6
{[%clk 0:01:57.6]} 27. Nc4 {[%clk 0:02:04.1]} 27... Ke7 {[%clk 0:01:53.9]} 28.
Ne5 {[%clk 0:02:03.1]} 28... Qh5 {[%clk 0:01:44.7]} 29. Qd2 {[%clk 0:01:59.7]}
29... Rhg8 {[%clk 0:01:40.6]} 30. Rg1 {[%clk 0:01:53.9]} 30... Rg7 {[%clk
0:01:29.2]} 31. Qxb4 {[%clk 0:01:50.3]} 31... Bc8 {[%clk 0:01:19.1]} 32. Qb6
{[%clk 0:01:42.4]} 32... Kf6 {[%clk 0:01:18.8]} 33. Qd8+ {[%clk 0:01:38.4]}
33... Re7 {[%clk 0:01:12.5]} 34. Qf8+ {[%clk 0:01:30.1]} 34... Rf7 {[%clk
0:01:08.9]} 35. Nxf7 {[%clk 0:01:28.6]} 35... Qxf7 {[%clk 0:01:08.9]} 36. Qxf7+
{[%clk 0:01:27.9]} 36... Kxf7 {[%clk 0:01:09.8]} 37. Kxh3 {[%clk 0:01:27.8]}
37... Bd7 {[%clk 0:01:10.1]} 38. Kg2 {[%clk 0:01:27.3]} 38... b6 {[%clk
0:01:06.8]} 39. cxb6 {[%clk 0:01:26.7]} 39... Ra5 {[%clk 0:01:06.5]} 40. Rh1
{[%clk 0:01:24.4]} 40... Kg6 {[%clk 0:01:04]} 41. b4 {[%clk 0:01:20.4]} 41...
Ra8 {[%clk 0:00:56.7]} 42. a5 {[%clk 0:01:17]} 42... Bc8 {[%clk 0:00:39.6]} 43.
Rhc1 {[%clk 0:01:13.3]} 43... Bb7 {[%clk 0:00:38.6]} 44. Rc5 {[%clk 0:01:08.6]}
44... Ra6 {[%clk 0:00:37.1]} 45. b5 {[%clk 0:01:01.7]} 45... cxb5 {[%clk
0:00:36.3]} 46. Rxb5 {[%clk 0:01:01.8]} 46... Ra8 {[%clk 0:00:29.3]} 47. Rc5
{[%clk 0:00:59.5]} 47... e3+ {[%clk 0:00:17.2]} 48. Kf1 {[%clk 0:00:57.5]} 48...
exf2 {[%clk 0:00:16.1]} 49. Kxf2 {[%clk 0:00:57.3]} 49... Rd8 {[%clk 0:00:16.1]}
50. Rc4 {[%clk 0:00:51.2]} 50... Ba6 {[%clk 0:00:14.9]} 51. Rb4 {[%clk
0:00:49.8]} 51... e5 {[%clk 0:00:13.7]} 52. fxe5 {[%clk 0:00:47.7]} 52... Kg5
{[%clk 0:00:13]} 53. b7 {[%clk 0:00:45.8]} 53... Rb8 {[%clk 0:00:11.9]} 54. Rab1
{[%clk 0:00:39.5]} 54... Kg4 {[%clk 0:00:10.4]} 55. e6 {[%clk 0:00:37.4]} 55...
Kg5 {[%clk 0:00:09.7]} 56. e7 {[%clk 0:00:37.1]} 56... Kf6 {[%clk 0:00:09.2]}
57. e8=Q {[%clk 0:00:35.1]} 57... Rxe8 {[%clk 0:00:09.1]} 58. b8=Q {[%clk
0:00:34.7]} 58... Re2+ {[%clk 0:00:09]} 59. Kf3 {[%clk 0:00:32.6]} 59... Re6
{[%clk 0:00:05.2]} 60. Qf8+ {[%clk 0:00:31.7]} 60... Kg6 {[%clk 0:00:04.3]} 61.
Qg8+ {[%clk 0:00:31.1]} 61... Kf6 {[%clk 0:00:04.4]} 62. Qxe6+ {[%clk
0:00:29.9]} 62... Kxe6 {[%clk 0:00:05.3]} 63. Rb6+ {[%clk 0:00:30.1]} 63... Kd5
{[%clk 0:00:05.4]} 64. Rxa6 {[%clk 0:00:30.3]} 64... Kc4 {[%clk 0:00:05.7]} 65.
Rf6 {[%clk 0:00:30.1]} 65... Kd3 {[%clk 0:00:04.8]} 66. a6 {[%clk 0:00:30]}
66... Kc2 {[%clk 0:00:05.7]} 67. Re1 {[%clk 0:00:28.5]} 67... Kd2 {[%clk
0:00:05.5]} 68. Kf2 {[%clk 0:00:28.7]} 68... Kd3 {[%clk 0:00:05.3]} 69. Rxf5
{[%clk 0:00:28.6]} 69... Kd2 {[%clk 0:00:05.7]} 70. a7 {[%clk 0:00:28.4]} 70...
Kd3 {[%clk 0:00:05.9]} 71. d5 {[%clk 0:00:28.5]} 71... Kc2 {[%clk 0:00:05.5]}
72. d6 {[%clk 0:00:28.8]} 72... Kd2 {[%clk 0:00:05.9]} 73. d7 {[%clk 0:00:29]}
73... Kc2 {[%clk 0:00:06.8]} 74. d8=Q {[%clk 0:00:28.3]} 74... Kb2 {[%clk
0:00:07.7]} 75. Rb5+ {[%clk 0:00:27.5]} 75... Kc2 {[%clk 0:00:07.6]} 76. Qc8+
{[%clk 0:00:27.4]} 1-0

[Event "Betsys MČR v online bleskovém šachu 2021"]
[Site "Chess.com"]
[Date "2021.04.17"]
[Round "10"]
[White "KatkaZ"]
[Black "svobodan"]
[Result "1-0"]
[WhiteElo "1845"]
[BlackElo "1640"]
[TimeControl "180+1"]
[EndTime "10:42:19 PDT"]
[Termination "Uživatel KatkaZ zvítězil matem"]

1. Nf3 {[%clk 0:03:00.9]} 1... c5 {[%clk 0:02:56.6]} 2. g3 {[%clk 0:03:00.9]}
2... g6 {[%clk 0:02:53.8]} 3. Bg2 {[%clk 0:03:01.2]} 3... Bg7 {[%clk 0:02:53.8]}
4. d3 {[%clk 0:03:01.7]} 4... Nf6 {[%clk 0:02:53.1]} 5. Nbd2 {[%clk 0:03:02.1]}
5... Nc6 {[%clk 0:02:52.4]} 6. c3 {[%clk 0:03:02]} 6... d5 {[%clk 0:02:50.5]} 7.
O-O {[%clk 0:03:01.4]} 7... O-O {[%clk 0:02:49.7]} 8. e4 {[%clk 0:03:01.3]} 8...
dxe4 {[%clk 0:02:41.9]} 9. dxe4 {[%clk 0:03:01.2]} 9... Be6 {[%clk 0:02:24.2]}
10. h3 {[%clk 0:02:56.1]} 10... Qc7 {[%clk 0:02:09.5]} 11. Qe2 {[%clk 0:02:53]}
11... a6 {[%clk 0:02:02.8]} 12. a4 {[%clk 0:02:50.5]} 12... Rfd8 {[%clk
0:01:45.5]} 13. Nc4 {[%clk 0:02:47.9]} 13... Bxc4 {[%clk 0:01:35.7]} 14. Qxc4
{[%clk 0:02:46.8]} 14... Nd7 {[%clk 0:01:11.8]} 15. Bf4 {[%clk 0:02:38.4]} 15...
Nde5 {[%clk 0:01:07.6]} 16. Qxc5 {[%clk 0:02:28.9]} 16... Qd6 {[%clk 0:00:45.2]}
17. Qxd6 {[%clk 0:02:23]} 17... exd6 {[%clk 0:00:42.4]} 18. Rfd1 {[%clk
0:02:03.4]} 18... h6 {[%clk 0:00:22.5]} 19. Nxe5 {[%clk 0:02:00.1]} 19... Nxe5
{[%clk 0:00:22.5]} 20. Be3 {[%clk 0:01:57.2]} 20... Nc4 {[%clk 0:00:20.5]} 21.
Bc1 {[%clk 0:01:50.4]} 21... Rac8 {[%clk 0:00:12.8]} 22. Bf1 {[%clk 0:01:34.1]}
22... Nb6 {[%clk 0:00:09.2]} 23. a5 {[%clk 0:01:31]} 23... Nd7 {[%clk
0:00:08.4]} 24. Rxd6 {[%clk 0:01:28.3]} 24... Nc5 {[%clk 0:00:07.1]} 25. Rxd8+
{[%clk 0:01:27.3]} 25... Rxd8 {[%clk 0:00:07.6]} 26. Be3 {[%clk 0:01:27.3]}
26... Nb3 {[%clk 0:00:07.2]} 27. Ra4 {[%clk 0:01:19.9]} 27... Nd2 {[%clk
0:00:07]} 28. Bg2 {[%clk 0:01:11.7]} 28... Nb3 {[%clk 0:00:03.7]} 29. Bf3 {[%clk
0:00:59.5]} 29... Nd2 {[%clk 0:00:03.2]} 30. Be2 {[%clk 0:00:56.6]} 30... Nb3
{[%clk 0:00:02.3]} 31. Bb6 {[%clk 0:00:52.8]} 31... Rd7 {[%clk 0:00:01.5]} 32.
Bf3 {[%clk 0:00:45.6]} 32... Nc1 {[%clk 0:00:01.8]} 33. Kg2 {[%clk 0:00:43.5]}
33... Nd3 {[%clk 0:00:02.1]} 34. Bd4 {[%clk 0:00:40.6]} 34... Ne5 {[%clk
0:00:02.6]} 35. Rb4 {[%clk 0:00:37.3]} 35... Nc6 {[%clk 0:00:02]} 36. Rc4 {[%clk
0:00:34.7]} 36... Bxd4 {[%clk 0:00:01.8]} 37. cxd4 {[%clk 0:00:33.2]} 37... Nxd4
{[%clk 0:00:02.3]} 38. Rc8+ {[%clk 0:00:31.6]} 38... Kg7 {[%clk 0:00:02.4]} 39.
e5 {[%clk 0:00:31.1]} 39... Nxf3 {[%clk 0:00:02.4]} 40. Kxf3 {[%clk 0:00:30.7]}
40... Re7 {[%clk 0:00:03.1]} 41. Ke4 {[%clk 0:00:27.9]} 41... f6 {[%clk
0:00:03.6]} 42. f4 {[%clk 0:00:27.5]} 42... fxe5 {[%clk 0:00:03.6]} 43. fxe5
{[%clk 0:00:26.9]} 43... Rd7 {[%clk 0:00:04.1]} 44. b4 {[%clk 0:00:22.4]} 44...
Rd1 {[%clk 0:00:03.7]} 45. Rc7+ {[%clk 0:00:21.7]} 45... Kf8 {[%clk 0:00:03.1]}
46. Rxb7 {[%clk 0:00:21.5]} 46... Rg1 {[%clk 0:00:02.2]} 47. Kf4 {[%clk
0:00:20.5]} 47... Rf1+ {[%clk 0:00:01.7]} 48. Kg4 {[%clk 0:00:19.9]} 48... Re1
{[%clk 0:00:02]} 49. Rb6 {[%clk 0:00:17.7]} 49... Rxe5 {[%clk 0:00:02]} 50. Rxg6
{[%clk 0:00:17.2]} 50... Rb5 {[%clk 0:00:02.8]} 51. Rxa6 {[%clk 0:00:16.1]}
51... Rxb4+ {[%clk 0:00:03.5]} 52. Kh5 {[%clk 0:00:14.2]} 52... Kg7 {[%clk
0:00:03.5]} 53. Ra7+ {[%clk 0:00:13.4]} 53... Kh8 {[%clk 0:00:03]} 54. Kxh6
{[%clk 0:00:12.8]} 54... Kg8 {[%clk 0:00:01.2]} 55. g4 {[%clk 0:00:12.1]} 55...
Kf8 {[%clk 0:00:01.2]} 56. g5 {[%clk 0:00:11.6]} 56... Rb5 {[%clk 0:00:01.6]}
57. g6 {[%clk 0:00:10.7]} 57... Rb3 {[%clk 0:00:02.1]} 58. g7+ {[%clk 0:00:10]}
58... Kg8 {[%clk 0:00:02]} 59. Ra8+ {[%clk 0:00:09.4]} 59... Kf7 {[%clk
0:00:02.6]} 60. g8=Q+ {[%clk 0:00:06.3]} 60... Kf6 {[%clk 0:00:03.5]} 61. Qxb3
{[%clk 0:00:06.2]} 61... Kf5 {[%clk 0:00:03.5]} 62. Qf3+ {[%clk 0:00:06.6]}
62... Ke6 {[%clk 0:00:03.4]} 63. Re8+ {[%clk 0:00:06.8]} 63... Kd7 {[%clk
0:00:03.5]} 64. Re2 {[%clk 0:00:06.5]} 64... Kc7 {[%clk 0:00:03.3]} 65. Qc3+
{[%clk 0:00:06.1]} 65... Kb7 {[%clk 0:00:03.6]} 66. Rb2+ {[%clk 0:00:06.5]}
66... Ka6 {[%clk 0:00:03.9]} 67. Qc4+ {[%clk 0:00:06]} 67... Ka7 {[%clk
0:00:03.9]} 68. Rb6 {[%clk 0:00:04.6]} 68... Ka8 {[%clk 0:00:03.3]} 69. Qc8+
{[%clk 0:00:04.2]} 69... Ka7 {[%clk 0:00:03.7]} 70. Qc7+ {[%clk 0:00:04.5]}
70... Ka8 {[%clk 0:00:03.6]} 71. Rb8# {[%clk 0:00:04.8]} 1-0

[Event "Betsys MČR v online bleskovém šachu 2021"]
[Site "Chess.com"]
[Date "2021.04.17"]
[Round "10"]
[White "MartinHollan"]
[Black "hoacin"]
[Result "1-0"]
[WhiteElo "2618"]
[BlackElo "2587"]
[TimeControl "180+1"]
[EndTime "10:42:26 PDT"]
[Termination "Uživatel MartinHollan zvítězil na čas"]

1. e4 {[%clk 0:03:00.9]} 1... c5 {[%clk 0:02:59.9]} 2. Nf3 {[%clk 0:03:00.8]}
2... d6 {[%clk 0:03:00.1]} 3. Bb5+ {[%clk 0:03:00.7]} 3... Bd7 {[%clk
0:02:59.3]} 4. Bxd7+ {[%clk 0:03:00.1]} 4... Qxd7 {[%clk 0:02:59.5]} 5. O-O
{[%clk 0:02:55.6]} 5... g6 {[%clk 0:02:58.7]} 6. e5 {[%clk 0:02:53.4]} 6... dxe5
{[%clk 0:02:55.3]} 7. Nxe5 {[%clk 0:02:53]} 7... Qc7 {[%clk 0:02:54.8]} 8. Re1
{[%clk 0:02:47.5]} 8... Bg7 {[%clk 0:02:52.6]} 9. Qe2 {[%clk 0:02:43.8]} 9...
Nf6 {[%clk 0:02:47.7]} 10. Nc3 {[%clk 0:02:39.7]} 10... O-O {[%clk 0:02:45]} 11.
d3 {[%clk 0:02:35.4]} 11... Nc6 {[%clk 0:02:27.9]} 12. Nxc6 {[%clk 0:02:31]}
12... Qxc6 {[%clk 0:02:27.4]} 13. Bg5 {[%clk 0:02:30.4]} 13... e6 {[%clk
0:02:21.5]} 14. Rab1 {[%clk 0:02:11.8]} 14... b5 {[%clk 0:02:14.2]} 15. Ne4
{[%clk 0:02:11.3]} 15... Nd7 {[%clk 0:01:59.4]} 16. c4 {[%clk 0:02:07.8]} 16...
h6 {[%clk 0:01:23]} 17. Bd2 {[%clk 0:01:59.2]} 17... Rad8 {[%clk 0:01:13.2]} 18.
Bc3 {[%clk 0:01:47.9]} 18... bxc4 {[%clk 0:00:50.4]} 19. Bxg7 {[%clk 0:01:33.9]}
19... cxd3 {[%clk 0:00:33.7]} 20. Qxd3 {[%clk 0:01:33.3]} 20... Kxg7 {[%clk
0:00:33.3]} 21. Qc3+ {[%clk 0:01:33.1]} 21... e5 {[%clk 0:00:31.9]} 22. b4
{[%clk 0:01:27.6]} 22... Rc8 {[%clk 0:00:23.9]} 23. Nxc5 {[%clk 0:01:26.8]}
23... Nxc5 {[%clk 0:00:22.9]} 24. Qxe5+ {[%clk 0:01:25.2]} 24... Qf6 {[%clk
0:00:22.7]} 25. bxc5 {[%clk 0:01:21.8]} 25... Qxe5 {[%clk 0:00:22.7]} 26. Rxe5
{[%clk 0:01:21.7]} 26... Rc7 {[%clk 0:00:23.4]} 27. Rc1 {[%clk 0:01:10.4]} 27...
Rfc8 {[%clk 0:00:22.5]} 28. Rd5 {[%clk 0:01:09.8]} 28... Rc6 {[%clk 0:00:21]}
29. g3 {[%clk 0:01:06.9]} 29... Ra6 {[%clk 0:00:20.6]} 30. Rc2 {[%clk 0:01:07]}
30... Rc7 {[%clk 0:00:20.7]} 31. Kg2 {[%clk 0:01:06.9]} 31... Ra5 {[%clk
0:00:21]} 32. h4 {[%clk 0:01:06.3]} 32... Kf6 {[%clk 0:00:21.3]} 33. h5 {[%clk
0:01:05.4]} 33... Ke6 {[%clk 0:00:21.1]} 34. Rcd2 {[%clk 0:01:03.6]} 34... Raxc5
{[%clk 0:00:18.8]} 35. Rd6+ {[%clk 0:01:03.4]} 35... Ke7 {[%clk 0:00:18.4]} 36.
hxg6 {[%clk 0:01:03]} 36... fxg6 {[%clk 0:00:18.4]} 37. Rxg6 {[%clk 0:01:03.2]}
37... R5c6 {[%clk 0:00:18.9]} 38. Rg7+ {[%clk 0:00:54.1]} 38... Kf6 {[%clk
0:00:18.9]} 39. Rxc7 {[%clk 0:00:50.6]} 39... Rxc7 {[%clk 0:00:19]} 40. Rd6+
{[%clk 0:00:50.9]} 40... Kg7 {[%clk 0:00:18.2]} 41. Ra6 {[%clk 0:00:51.3]} 41...
h5 {[%clk 0:00:18.3]} 42. Kh3 {[%clk 0:00:49.8]} 42... Rc2 {[%clk 0:00:18.2]}
43. Rxa7+ {[%clk 0:00:49.3]} 43... Kg6 {[%clk 0:00:18.3]} 44. Kg2 {[%clk
0:00:49.7]} 44... Kf5 {[%clk 0:00:17.6]} 45. Ra5+ {[%clk 0:00:49.5]} 45... Kg6
{[%clk 0:00:17.5]} 46. a4 {[%clk 0:00:49.4]} 46... Rc4 {[%clk 0:00:17.5]} 47.
Ra8 {[%clk 0:00:42.1]} 47... h4 {[%clk 0:00:17.5]} 48. gxh4 {[%clk 0:00:33]}
48... Rxh4 {[%clk 0:00:17.3]} 49. Kf3 {[%clk 0:00:26]} 49... Rc4 {[%clk
0:00:16.3]} 50. Ke3 {[%clk 0:00:25.5]} 50... Rb4 {[%clk 0:00:15.4]} 51. a5
{[%clk 0:00:24.8]} 51... Kf7 {[%clk 0:00:15.2]} 52. Kd3 {[%clk 0:00:23.7]} 52...
Rf4 {[%clk 0:00:12.7]} 53. Ke3 {[%clk 0:00:23]} 53... Rf5 {[%clk 0:00:12.3]} 54.
a6 {[%clk 0:00:20.9]} 54... Ra5 {[%clk 0:00:12.1]} 55. Kd4 {[%clk 0:00:19]}
55... Ra2 {[%clk 0:00:11.9]} 56. Kc5 {[%clk 0:00:17.8]} 56... Re2 {[%clk
0:00:11.4]} 57. Rd8 {[%clk 0:00:12]} 57... Rc2+ {[%clk 0:00:10.6]} 58. Kb6
{[%clk 0:00:11.7]} 58... Rb2+ {[%clk 0:00:10.8]} 59. Ka7 {[%clk 0:00:10]} 59...
Ke7 {[%clk 0:00:10.6]} 60. Rb8 {[%clk 0:00:08.4]} 60... Rxf2 {[%clk 0:00:10.4]}
61. Rb3 {[%clk 0:00:08.4]} 61... Kd6 {[%clk 0:00:07.8]} 62. Kb7 {[%clk 0:00:08]}
62... Rf7+ {[%clk 0:00:07.1]} 63. Kb6 {[%clk 0:00:08.3]} 63... Rf6 {[%clk
0:00:05.6]} 64. a7 {[%clk 0:00:08.2]} 64... Kd5+ {[%clk 0:00:06]} 65. Kb7 {[%clk
0:00:08.3]} 65... Rf7+ {[%clk 0:00:05.7]} 66. Ka6 {[%clk 0:00:08.6]} 66... Rf6+
{[%clk 0:00:04.9]} 67. Rb6 {[%clk 0:00:08.7]} 67... Rf1 {[%clk 0:00:04.5]} 68.
a8=Q+ {[%clk 0:00:07.2]} 68... Kc5 {[%clk 0:00:05.1]} 69. Qc8+ {[%clk
0:00:07.4]} 1-0

[Event "Betsys MČR v online bleskovém šachu 2021"]
[Site "Chess.com"]
[Date "2021.04.17"]
[Round "10"]
[White "koky_3"]
[Black "prosinec"]
[Result "1-0"]
[WhiteElo "2048"]
[BlackElo "1758"]
[TimeControl "180+1"]
[EndTime "10:42:27 PDT"]
[Termination "Uživatel koky_3 zvítězil matem"]

1. e4 {[%clk 0:03:00.9]} 1... d6 {[%clk 0:02:32.9]} 2. d4 {[%clk 0:02:59.5]}
2... Nf6 {[%clk 0:02:31.7]} 3. Nc3 {[%clk 0:02:59.3]} 3... c6 {[%clk 0:02:30.6]}
4. f3 {[%clk 0:02:56.6]} 4... e5 {[%clk 0:02:26.5]} 5. Nge2 {[%clk 0:02:54.9]}
5... Be7 {[%clk 0:02:19.6]} 6. Be3 {[%clk 0:02:54]} 6... O-O {[%clk 0:02:17.5]}
7. Qd2 {[%clk 0:02:54]} 7... Nbd7 {[%clk 0:02:16.9]} 8. O-O-O {[%clk 0:02:54]}
8... Qc7 {[%clk 0:02:09.9]} 9. g4 {[%clk 0:02:53.2]} 9... h6 {[%clk 0:02:08.6]}
10. h4 {[%clk 0:02:52.5]} 10... Nh7 {[%clk 0:02:04.1]} 11. Ng3 {[%clk
0:02:49.6]} 11... exd4 {[%clk 0:02:02.5]} 12. Bxd4 {[%clk 0:02:47.4]} 12... Ne5
{[%clk 0:01:58.1]} 13. Qf2 {[%clk 0:02:39.7]} 13... c5 {[%clk 0:01:49.2]} 14.
Nd5 {[%clk 0:02:25.7]} 14... Qd8 {[%clk 0:01:27.7]} 15. Bc3 {[%clk 0:02:25.1]}
15... Bxh4 {[%clk 0:01:14]} 16. Bxe5 {[%clk 0:02:22.7]} 16... dxe5 {[%clk
0:01:08.8]} 17. Kb1 {[%clk 0:02:08]} 17... Bxg3 {[%clk 0:01:01.7]} 18. Qxg3
{[%clk 0:02:06]} 18... Qg5 {[%clk 0:00:59.3]} 19. Rh5 {[%clk 0:01:59.2]} 19...
Qd8 {[%clk 0:00:50]} 20. Bc4 {[%clk 0:01:41.6]} 20... Be6 {[%clk 0:00:46.3]} 21.
Qxe5 {[%clk 0:01:37.2]} 21... Bxd5 {[%clk 0:00:32.7]} 22. Bxd5 {[%clk
0:01:36.6]} 22... Qf6 {[%clk 0:00:25.2]} 23. Qg3 {[%clk 0:01:33.6]} 23... Rad8
{[%clk 0:00:18.6]} 24. Rf5 {[%clk 0:01:32.2]} 24... Qg6 {[%clk 0:00:16]} 25. b3
{[%clk 0:01:12.2]} 25... Nf6 {[%clk 0:00:15.4]} 26. g5 {[%clk 0:01:05.3]} 26...
Nxd5 {[%clk 0:00:14.2]} 27. Rfxd5 {[%clk 0:01:04.2]} 27... Rxd5 {[%clk 0:00:13]}
28. Rxd5 {[%clk 0:01:03.4]} 28... hxg5 {[%clk 0:00:11.2]} 29. Rxg5 {[%clk
0:01:00.1]} 29... Qh6 {[%clk 0:00:11.2]} 30. Rxc5 {[%clk 0:00:57.7]} 30... Rd8
{[%clk 0:00:08.4]} 31. Rg5 {[%clk 0:00:51.7]} 31... Rd1+ {[%clk 0:00:08]} 32.
Kb2 {[%clk 0:00:51.1]} 32... Qf6+ {[%clk 0:00:07.8]} 33. Qe5 {[%clk 0:00:46.1]}
33... Qxe5+ {[%clk 0:00:07.2]} 34. Rxe5 {[%clk 0:00:45.7]} 34... Rf1 {[%clk
0:00:07]} 35. Rf5 {[%clk 0:00:38.7]} 35... g6 {[%clk 0:00:06]} 36. Rf6 {[%clk
0:00:38.1]} 36... Kg7 {[%clk 0:00:05.9]} 37. e5 {[%clk 0:00:38]} 37... Re1
{[%clk 0:00:04.9]} 38. f4 {[%clk 0:00:37.8]} 38... Re4 {[%clk 0:00:04.8]} 39. a4
{[%clk 0:00:35.8]} 39... g5 {[%clk 0:00:04.7]} 40. fxg5 {[%clk 0:00:30.7]} 40...
Rxe5 {[%clk 0:00:04.8]} 41. Rd6 {[%clk 0:00:24.8]} 41... Rxg5 {[%clk 0:00:04.7]}
42. Rd7 {[%clk 0:00:24.4]} 42... b5 {[%clk 0:00:04.8]} 43. Rxa7 {[%clk
0:00:22.2]} 43... bxa4 {[%clk 0:00:04.6]} 44. Rxa4 {[%clk 0:00:22]} 44... Kg6
{[%clk 0:00:05.5]} 45. Kc3 {[%clk 0:00:21.2]} 45... f5 {[%clk 0:00:06.4]} 46.
Kd2 {[%clk 0:00:20.7]} 46... Rg2+ {[%clk 0:00:06.2]} 47. Kd3 {[%clk 0:00:20.8]}
47... Rg1 {[%clk 0:00:05.8]} 48. c4 {[%clk 0:00:17.1]} 48... Kg5 {[%clk
0:00:04.6]} 49. Ra2 {[%clk 0:00:15.9]} 49... Rb1 {[%clk 0:00:03.1]} 50. Kc3
{[%clk 0:00:14]} 50... Rc1+ {[%clk 0:00:02]} 51. Kd4 {[%clk 0:00:13.5]} 51...
Re1 {[%clk 0:00:02.9]} 52. b4 {[%clk 0:00:13]} 52... Re8 {[%clk 0:00:03.8]} 53.
b5 {[%clk 0:00:12.1]} 53... f4 {[%clk 0:00:04.7]} 54. c5 {[%clk 0:00:11.5]}
54... Kg4 {[%clk 0:00:05.6]} 55. Kd5 {[%clk 0:00:11.5]} 55... f3 {[%clk
0:00:06]} 56. Rf2 {[%clk 0:00:11]} 56... Re2 {[%clk 0:00:05.1]} 57. Rf1 {[%clk
0:00:10.1]} 57... f2 {[%clk 0:00:04.1]} 58. b6 {[%clk 0:00:08]} 58... Kf3 {[%clk
0:00:03.7]} 59. b7 {[%clk 0:00:07]} 59... Re1 {[%clk 0:00:03.4]} 60. Rxf2+
{[%clk 0:00:06.9]} 60... Kxf2 {[%clk 0:00:03.1]} 61. b8=Q {[%clk 0:00:06.7]}
61... Rd1+ {[%clk 0:00:04]} 62. Kc6 {[%clk 0:00:06.5]} 62... Re1 {[%clk
0:00:04.9]} 63. Qf8+ {[%clk 0:00:05.6]} 63... Ke2 {[%clk 0:00:04.5]} 64. Qe7+
{[%clk 0:00:05.7]} 64... Kd1 {[%clk 0:00:04.4]} 65. Qxe1+ {[%clk 0:00:06.3]}
65... Kxe1 {[%clk 0:00:04.4]} 66. Kb5 {[%clk 0:00:06.2]} 66... Kd2 {[%clk
0:00:05.3]} 67. c6 {[%clk 0:00:06.5]} 67... Kd3 {[%clk 0:00:05.1]} 68. c7 {[%clk
0:00:07.2]} 68... Ke3 {[%clk 0:00:06]} 69. c8=Q {[%clk 0:00:07.5]} 69... Ke4
{[%clk 0:00:06.9]} 70. Qd7 {[%clk 0:00:07.7]} 70... Kf4 {[%clk 0:00:06.9]} 71.
Qe6 {[%clk 0:00:07.9]} 71... Kf3 {[%clk 0:00:06.1]} 72. Qe5 {[%clk 0:00:07.9]}
72... Kf2 {[%clk 0:00:05.9]} 73. Qe4 {[%clk 0:00:07.9]} 73... Kf1 {[%clk
0:00:06.8]} 74. Qc2 {[%clk 0:00:07.7]} 74... Kg1 {[%clk 0:00:07.7]} 75. Kc4
{[%clk 0:00:07.9]} 75... Kh1 {[%clk 0:00:08.6]} 76. Kd4 {[%clk 0:00:08.2]} 76...
Kg1 {[%clk 0:00:09.4]} 77. Ke3 {[%clk 0:00:08.4]} 77... Kf1 {[%clk 0:00:10.3]}
78. Qf2# {[%clk 0:00:07.4]} 1-0

[Event "Betsys MČR v online bleskovém šachu 2021"]
[Site "Chess.com"]
[Date "2021.04.17"]
[Round "11"]
[White "Hroch_Hippo"]
[Black "WhiteLittleHorse"]
[Result "0-1"]
[WhiteElo "1080"]
[BlackElo "972"]
[TimeControl "180+1"]
[EndTime "10:43:47 PDT"]
[Termination "Uživatel WhiteLittleHorse zvítězil matem"]

1. e4 {[%clk 0:02:59.6]} 1... e5 {[%clk 0:02:59.3]} 2. Nf3 {[%clk 0:02:56.5]}
2... Nc6 {[%clk 0:02:59.1]} 3. Bc4 {[%clk 0:02:57.1]} 3... Nf6 {[%clk
0:02:57.2]} 4. Ng5 {[%clk 0:02:57.2]} 4... Bc5 {[%clk 0:02:52.5]} 5. Nxf7 {[%clk
0:02:52.1]} 5... Bxf2+ {[%clk 0:02:50.6]} 6. Kxf2 {[%clk 0:02:50.1]} 6... Nxe4+
{[%clk 0:02:48.4]} 7. Ke1 {[%clk 0:02:47.3]} 7... Qh4+ {[%clk 0:02:44.9]} 8. g3
{[%clk 0:02:46.4]} 8... Nxg3 {[%clk 0:02:43.7]} 9. Nxh8 {[%clk 0:02:45.7]} 9...
Nxh1+ {[%clk 0:02:41.3]} 10. Kf1 {[%clk 0:02:45.3]} 10... Qf2# {[%clk
0:02:40.4]} 0-1

[Event "Betsys MČR v online bleskovém šachu 2021"]
[Site "Chess.com"]
[Date "2021.04.17"]
[Round "11"]
[White "David_Mic"]
[Black "PremetFugas"]
[Result "1-0"]
[WhiteElo "2017"]
[BlackElo "2098"]
[TimeControl "180+1"]
[EndTime "10:45:05 PDT"]
[Termination "Uživatel David_Mic zvítězil matem"]

1. e4 {[%clk 0:03:00.9]} 1... g6 {[%clk 0:02:56.8]} 2. d4 {[%clk 0:02:59.8]}
2... Bg7 {[%clk 0:02:56.6]} 3. Nc3 {[%clk 0:02:59.5]} 3... d6 {[%clk 0:02:55.5]}
4. Be3 {[%clk 0:02:59.2]} 4... Nf6 {[%clk 0:02:54]} 5. Qd2 {[%clk 0:02:58.2]}
5... c6 {[%clk 0:02:51.6]} 6. Bh6 {[%clk 0:02:56.8]} 6... O-O {[%clk 0:02:47.7]}
7. Bxg7 {[%clk 0:02:56]} 7... Kxg7 {[%clk 0:02:48]} 8. h4 {[%clk 0:02:53.9]}
8... h5 {[%clk 0:02:44.7]} 9. Be2 {[%clk 0:02:48.5]} 9... b5 {[%clk 0:02:42.8]}
10. a3 {[%clk 0:02:43]} 10... Nbd7 {[%clk 0:02:40.1]} 11. g4 {[%clk 0:02:34.8]}
11... hxg4 {[%clk 0:02:37.5]} 12. h5 {[%clk 0:02:34.4]} 12... gxh5 {[%clk
0:02:35.6]} 13. Qg5+ {[%clk 0:02:27.6]} 13... Kh7 {[%clk 0:02:34.4]} 14. Bxg4
{[%clk 0:02:09.7]} 14... Rg8 {[%clk 0:02:22.2]} 15. Bf5+ {[%clk 0:02:03.9]}
15... Kh8 {[%clk 0:02:20.6]} 16. Qh6+ {[%clk 0:02:02.6]} 16... Nh7 {[%clk
0:02:20]} 17. Qxh7# {[%clk 0:02:02.4]} 1-0